bitfinex/quotes_SOLUSD_20251030
["timestamp","ask_amount","ask_price","bid_price","bid_amount"]
[1761809886358,3.80341813,196.29,196.26,0.71]
[1761809886546,3.80341813,196.28,196.26,0.71]
[1761809886747,3.80341813,196.27,196.26,0.71]
[1761809887139,3.80341813,196.29,196.26,0.71]
[1761809887358,3.80341813,196.28,196.26,0.71]
[1761809887646,3.80341813,196.27,196.26,0.71]
[1761809887845,3.80341813,196.29,196.26,0.71]
[1761809888060,3.80341813,196.28,196.26,0.71]
[1761809888261,3.80341813,196.27,196.26,0.71]
[1761809888769,3.80341813,196.3,196.26,0.71]
[1761809888972,3.80341813,196.29,196.26,0.71]
[1761809889163,3.80341813,196.28,196.25,2.70792744]
[1761809889366,3.80341813,196.27,196.26,0.71]
[1761809889960,3.80341813,196.29,196.26,0.71]
[1761809890270,3.80341813,196.28,196.25,1.99792744]
[1761809890573,3.80341813,196.27,196.26,0.71]
[1761809890962,3.80341813,196.29,196.26,0.71]
[1761809891156,3.80341813,196.28,196.26,0.71]
[1761809891356,3.80341813,196.27,196.26,0.71]
[1761809891571,3.80341813,196.29,196.26,0.71]
[1761809893047,3.80341813,196.29,196.28,1.99792744]
[1761809893248,0.1,196.31,196.28,11.78675513]
[1761809893444,0.1,196.31,196.3,1.99792744]
[1761809893674,0.1,196.31,196.3,2.64792744]
[1761809894071,0.1,196.31,196.3,0.65]
[1761809896078,0.1,196.31,196.29,2.64792744]
[1761809896258,0.1,196.31,196.3,0.65]
[1761809896778,7.29199472,196.31,196.25,4.27758844]
[1761809896956,1.99792744,196.27,196.25,4.27758844]
[1761809897154,3.80343253,196.26,196.25,4.27758844]
[1761809897358,3.80343253,196.26,196.24,0.65]
[1761809897702,7.19264164,196.29,196.24,0.65]
[1761809897971,3.80361379,196.28,196.24,0.65]
[1761809899797,3.80361379,196.28,196.24,2.64792744]
[1761809900454,3.80361379,196.28,196.25,0.65]
[1761809900657,3.80398839,196.27,196.23,1.99792744]
[1761809900855,1.99792744,196.25,196.19,1.99792744]
[1761809901051,5.80191583,196.24,196.18,2.64792744]
[1761809901283,3.80398839,196.23,196.22,1.99792744]
[1761809901485,3.80475007,196.23,196.22,1.99792744]
[1761809901679,1.99792744,196.27,196.22,0.65]
[1761809901863,3.8045944,196.26,196.23,0.65]
[1761809902467,8.89996117,196.26,196.23,0.65]
[1761809902671,3.8045944,196.25,196.23,0.65]
[1761809903187,3.8045944,196.24,196.23,0.65]
[1761809903374,3.8045944,196.26,196.23,2.64792744]
[1761809903574,3.8045944,196.25,196.23,2.64792744]
[1761809903792,27.68459953,196.29,196.24,0.68]
[1761809903965,3.80482397,196.28,196.24,0.68]
[1761809904579,8.89973614,196.28,196.24,0.68]
[1761809904772,1.99792744,196.25,196.2,0.68]
[1761809904970,5.80275141,196.24,196.2,0.68]
[1761809905281,3.80482397,196.23,196.2,0.68]
[1761809905658,3.80482397,196.22,196.2,2.67792744]
[1761809905874,1.99792744,196.25,196.2,0.68]
[1761809906080,5.80325431,196.24,196.2,0.68]
[1761809906276,3.80532687,196.23,196.2,0.68]
[1761809906885,8.90139976,196.23,196.2,0.68]
[1761809907086,5.80325431,196.22,196.17,0.68]
[1761809907260,3.80532687,196.21,196.17,0.68]
[1761809910170,3.80532687,196.21,196.17,2.67792744]
[1761809911094,3.80532687,196.21,196.18,0.68]
[1761809912176,3.80532687,196.21,196.18,2.67792744]
[1761809912381,7.09398969,196.23,196.18,2.67792744]
[1761809912559,3.8064446,196.22,196.19,0.68]
[1761809916196,3.8064446,196.21,196.19,2.67792744]
[1761809916493,5.09584459,196.24,196.19,2.67792744]
[1761809916668,3.80826657,196.23,196.2,0.68]
[1761809917370,1.99792744,196.21,196.16,0.68]
[1761809917587,5.80619401,196.2,196.16,0.68]
[1761809917791,5.19615593,196.23,196.16,0.68]
[1761809917792,3.80826657,196.19,196.16,0.68]
[1761809917999,1.99792744,196.21,196.16,0.68]
[1761809918296,3.80916577,196.2,196.16,0.68]
[1761809921400,8.90602093,196.2,196.16,0.68]
[1761809921703,1.99792744,196.18,196.13,0.68]
[1761809921882,3.90916577,196.19,196.13,0.68]
[1761809921883,5.80709321,196.17,196.13,0.68]
[1761809922088,3.80916577,196.16,196.13,0.68]
[1761809922398,5.80709321,196.16,196.11,10.46882769]
[1761809922585,3.80916577,196.15,196.12,0.68]
[1761809923088,1.99792744,196.17,196.12,0.68]
[1761809923290,3.80936938,196.16,196.12,0.68]
[1761809923490,1.99792744,196.15,196.08,5.09993715]
[1761809923703,1.99792744,196.15,196.1,0.68]
[1761809924010,5.80610276,196.14,196.1,0.68]
[1761809924177,1.99792744,196.15,196.1,0.68]
[1761809924377,3.80675188,196.14,196.1,2.67792744]
[1761809924602,7.09581866,196.16,196.1,2.67792744]
[1761809924818,3.80670895,196.15,196.11,0.68]
[1761809925519,3.80670895,196.15,196.11,3.80452378]
[1761809926287,3.80670895,196.15,196.12,0.68]
[1761809927083,5.09766709,196.17,196.12,3.80452378]
[1761809927403,3.80454769,196.16,196.12,3.80452378]
[1761809927591,3.80454769,196.16,196.13,0.68]
[1761809927994,6.92907147,196.16,196.13,0.68]
[1761809928198,8.22219087,196.17,196.13,0.68]
[1761809928402,3.80317506,196.16,196.13,0.68]
[1761809930788,8.22219087,196.17,196.13,0.68]
[1761809931088,3.12452378,196.18,196.13,3.80452378]
[1761809931294,3.80201268,196.17,196.13,3.80452378]
[1761809931496,111.62182505,196.19,196.14,0.68]
[1761809931716,6.92640651,196.18,196.12,3.80452378]
[1761809931897,108.59730127,196.19,196.12,0.68]
[1761809931898,6.92640651,196.17,196.12,0.68]
[1761809932108,3.80188273,196.16,196.13,0.68]
[1761809933510,0.1,196.15,196.1,3.12452378]
[1761809933678,7.02640651,196.15,196.09,13.60335147]
[1761809933882,3.22452378,196.15,196.09,13.60335147]
[1761809934108,3.12452378,196.15,196.1,0.69]
[1761809935713,3.12452378,196.13,196.08,0.69]
[1761809935901,3.12452378,196.12,196.06,3.81452378]
[1761809936103,0.1,196.14,196.04,30.58082769]
[1761809936104,20.592,196.08,196.04,0.89]
[1761809936600,3.12452378,196.09,196.04,0.2]
[1761809936805,3.12452378,196.09,196.05,0.69]
[1761809937493,24.01320544,196.11,196.04,0.2]
[1761809937494,3.12452378,196.06,196.04,0.2]
[1761809937702,8.22526338,196.05,196.04,0.2]
[1761809938389,8.32526338,196.05,196.04,0.2]
[1761809938589,12.1245527,196.05,196.04,0.2]
[1761809938892,6.92394705,196.05,196.04,0.2]
[1761809939610,12.02468665,196.05,196.04,0.2]
[1761809940514,3.79942327,196.05,196.04,0.2]
[1761809940715,6.92394705,196.05,196.04,0.2]
[1761809940901,3.12452378,196.05,196.04,0.2]
[1761809941414,6.92271821,196.05,196.04,0.2]
[1761809941822,5.10058187,196.06,196.04,0.2]
[1761809942018,3.12452378,196.05,196.04,0.2]
[1761809943702,3.12452378,196.06,196.04,0.89]
[1761809943902,6.54058661,196.06,196.04,0.89]
[1761809945015,3.12452378,196.06,196.04,0.2]
[1761809946107,3.12452378,196.05,196.04,0.2]
[1761809946707,7.0180038,196.05,196.04,0.2]
[1761809947103,14.71644672,196.05,196.04,0.2]
[1761809947302,10.43214158,196.05,196.04,0.2]
[1761809947521,14.69841729,196.05,196.04,0.2]
[1761809947703,7.0180038,196.05,196.04,0.2]
[1761809948026,12.1187434,196.05,196.04,0.2]
[1761809948627,12.0187434,196.05,196.04,0.2]
[1761809949017,12.1187434,196.05,196.04,0.2]
[1761809950527,3.79348002,196.05,196.04,0.2]
[1761809950728,6.9180038,196.05,196.04,0.2]
[1761809950913,12.0187434,196.05,196.04,0.2]
[1761809953735,12.01116856,196.05,196.04,0.2]
[1761809954842,6.91042896,196.05,196.04,0.2]
[1761809955209,6.91033088,196.05,196.04,0.2]
[1761809956338,12.01107048,196.05,196.04,0.2]
[1761809957344,12.11107048,196.05,196.04,0.2]
[1761809958232,15.52520826,196.05,196.04,0.2]
[1761809960021,15.42520826,196.05,196.04,0.2]
[1761809960459,19.79148397,196.05,196.03,0.2]
[1761809960741,20.592,196.02,196.0,0.2]
[1761809960930,6.91033088,196.01,196.0,0.2]
[1761809961131,15.52624918,196.01,196.0,0.2]
[1761809964849,15.42624918,196.01,196.0,0.2]
[1761809965938,15.52624918,196.01,196.0,0.2]
[1761809966246,12.0121114,196.01,196.0,0.2]
[1761809966824,8.88758762,196.01,196.0,0.2]
[1761809967027,8.98758762,196.01,196.0,0.2]
[1761809967337,12.0121114,196.01,196.0,0.2]
[1761809967652,18.65077296,196.01,196.0,0.2]
[1761809968843,15.52624918,196.01,196.0,0.2]
[1761809969352,15.42624918,196.01,196.0,0.2]
[1761809969729,12.0121114,196.01,196.0,0.2]
[1761809969929,36.8671721,196.01,196.0,0.9]
[1761809970152,36.01824918,196.01,196.0,0.2]
[1761809970354,32.8937254,196.01,196.0,0.2]
[1761809970557,36.01824918,196.01,196.0,0.9]
[1761809971726,36.01824918,196.01,196.0,0.2]
[1761809971929,36.01824918,196.01,196.0,0.9]
[1761809972856,36.01824918,196.01,196.0,0.2]
[1761809973060,40.28130988,196.01,196.0,0.2]
[1761809973354,36.01824918,196.01,196.0,0.2]
[1761809974127,39.24965246,196.01,196.0,0.2]
[1761809974547,123.992,196.0,195.99,0.10000001]
[1761809974750,137.54787194,196.0,195.99,0.10000001]
[1761809974951,142.64991275,196.0,195.99,0.10000001]
[1761809978143,44.9697759,196.0,195.99,0.10000001]
[1761809978548,36.02538897,196.0,195.99,0.10000001]
[1761809979434,32.90086519,196.0,195.99,0.10000001]
[1761809979634,36.02538897,196.0,195.99,0.10000001]
[1761809979938,39.14991275,196.0,195.99,0.10000001]
[1761809980151,44.8697759,196.0,195.99,0.10000001]
[1761809980858,44.9697759,196.0,195.99,0.10000001]
[1761809981043,39.24991275,196.0,195.98,0.2]
[1761809981243,10.43134816,195.99,195.98,0.2]
[1761809982163,15.53364929,195.99,195.98,0.2]
[1761809983144,20.592,195.97,195.96,7.09098999]
[1761809983448,31.02334816,195.97,195.96,7.09098999]
[1761809984137,33.00164624,195.97,195.96,1e-08]
[1761809984336,39.11117303,195.97,195.96,1e-08]
[1761809984541,36.02617002,195.97,195.96,0.7]
[1761809984960,36.02617002,195.97,195.95,0.2]
[1761809985140,10.33134816,195.96,195.95,0.2]
[1761809985341,9.21140687,195.96,195.95,0.2]
[1761809986179,9.21140687,195.96,195.95,0.9]
[1761809986180,14.31448913,195.96,195.95,0.9]
[1761809988488,14.31448913,195.96,195.95,0.2]
[1761809989285,14.41448913,195.96,195.95,0.2]
[1761809989864,14.31448913,195.96,195.95,0.2]
[1761809990493,12.30990664,195.96,195.95,0.2]
[1761809990677,14.31448913,195.96,195.95,0.2]
[1761809993284,14.31448913,195.96,195.95,0.87]
[1761809993592,14.31448913,195.96,195.95,0.2]
[1761809994589,20.592,195.94,195.93,0.67]
[1761809994771,39.19310475,195.94,195.93,0.67]
[1761809998501,34.08950161,195.94,195.93,0.67]
[1761809998680,29.80340687,195.94,195.93,0.67]
[1761809998998,34.90701001,195.94,195.93,0.67]
[1761810000006,14.31501001,195.94,195.93,0.67]
[1761810000675,9.21140687,195.94,195.93,0.67]
[1761810001298,13.49750161,195.94,195.93,0.67]
[1761810001602,18.60110475,195.94,195.93,0.67]
[1761810002197,16.59652226,195.94,195.93,0.67]
[1761810002395,18.60110475,195.94,195.93,0.67]
[1761810003312,16.59652226,195.94,195.93,0.67]
[1761810003726,18.60110475,195.94,195.93,0.67]
[1761810005108,11.49291912,195.94,195.93,0.67]
[1761810005307,11.49291912,195.94,195.93,12.46341018]
[1761810005497,6.48682438,195.94,195.93,12.46341018]
[1761810005693,3.0726866,195.94,195.93,23.9563293]
[1761810005898,3.41413778,195.95,195.93,23.9563293]
[1761810006095,3.41413778,195.94,195.93,21.28174681]
[1761810006299,3.41413778,195.96,195.93,11.79341018]
[1761810006526,4.28609474,195.97,195.95,2.00458249]
[1761810006827,4.28609474,195.97,195.94,0.67]
[1761810006828,3.43710046,195.96,195.94,0.67]
[1761810007005,4.28609474,195.97,195.94,0.67]
[1761810007006,3.43710046,195.95,195.94,0.67]
[1761810007324,3.43710046,195.96,195.95,5.10234467]
[1761810007524,3.43710046,195.96,195.95,5.77234467]
[1761810007912,3.43710046,195.96,195.95,7.77692716]
[1761810008503,3.43710046,195.98,195.96,9.78882769]
[1761810008707,3.43710046,195.99,195.96,15.56190995]
[1761810008920,3.43710046,195.98,195.97,10.45882769]
[1761810009125,3.43710046,196.01,195.98,9.78882769]
[1761810009307,3.43710046,196.0,195.98,10.45882769]
[1761810009628,3.43710046,195.99,195.98,9.78882769]
[1761810009937,3.43710046,196.01,195.99,0.67]
[1761810010143,4.28609474,196.05,196.0,2.00458249]
[1761810010307,9.38670482,196.06,196.02,2.00458249]
[1761810010710,9.38670482,196.06,196.03,0.67]
[1761810010915,4.28609474,196.06,196.03,2.67458249]
[1761810011112,4.28609474,196.07,196.03,2.67458249]
[1761810011441,4.28609474,196.07,196.04,0.67]
[1761810011607,4.28609474,196.07,196.04,2.67458249]
[1761810011807,4.28609474,196.07,196.05,2.00458249]
[1761810012028,6.29067723,196.06,196.04,5.10061008]
[1761810012236,6.29403933,196.06,196.0,2.00458249]
[1761810012547,4.28945684,196.06,196.03,0.67]
[1761810012842,7.10485867,196.07,196.03,0.67]
[1761810013837,4.28945684,196.08,196.03,0.67]
[1761810013838,4.28945684,196.08,196.03,2.67458249]
[1761810014141,11.39405101,196.08,196.03,0.67]
[1761810014305,7.78459417,196.08,196.03,0.67]
[1761810014802,2.00458249,196.07,196.03,0.67]
[1761810015202,7.10506193,196.06,196.03,0.67]
[1761810015400,5.10047944,196.06,196.03,0.67]
[1761810016125,2.00458249,196.07,196.03,0.67]
[1761810016327,110.50492055,196.07,196.03,0.67]
[1761810016732,108.50033806,196.07,196.03,0.67]
[1761810017533,3.80513354,196.06,196.03,0.67]
[1761810019217,8.9056616,196.06,196.03,0.67]
[1761810019414,3.80513354,196.05,196.03,0.67]
[1761810020333,3.80513354,196.05,195.99,0.67]
[1761810020334,2.68458249,196.04,195.99,0.67]
[1761810020507,2.00458249,196.0,195.97,0.67]
[1761810020706,2.00458249,195.98,195.96,13.99618256]
[1761810020932,5.80748365,195.97,195.96,6.89098999]
[1761810021432,10.91030551,195.97,195.96,6.89098999]
[1761810022029,11.59030551,195.97,195.96,6.89098999]
[1761810023134,10.91030551,195.97,195.96,6.89098999]
[1761810024039,11.58030551,195.97,195.96,6.89098999]
[1761810024213,32.17230551,195.97,195.96,6.89098999]
[1761810025527,36.46176235,195.97,195.96,6.89098999]
[1761810025715,15.86976235,195.97,195.96,6.89098999]
[1761810026207,36.46176235,195.97,195.96,6.89098999]
[1761810026827,15.86976235,195.97,195.96,6.89098999]
[1761810027347,20.592,195.94,195.92,0.2]
[1761810027526,109.20748365,195.93,195.92,0.2]
[1761810029628,114.31134727,195.93,195.92,0.2]
[1761810032911,107.20290116,195.93,195.92,0.89]
[1761810033333,112.30676478,195.93,195.92,0.2]
[1761810033535,114.31134727,195.93,195.92,0.2]
[1761810034121,114.98134727,195.93,195.92,0.2]
[1761810034433,114.31134727,195.93,195.92,0.2]
[1761810038314,112.30676478,195.93,195.92,0.2]
[1761810038529,112.30676478,195.93,195.92,0.89]
[1761810038741,114.31134727,195.93,195.92,0.89]
[1761810038940,114.31134727,195.93,195.92,0.2]
[1761810039834,114.31134727,195.93,195.92,0.89]
[1761810040328,114.31134727,195.93,195.92,0.2]
[1761810040529,114.31134727,195.93,195.92,0.89]
[1761810041545,112.30676478,195.93,195.92,0.89]
[1761810041842,114.31134727,195.93,195.92,0.89]
[1761810042839,112.30676478,195.93,195.92,0.2]
[1761810043145,114.31134727,195.93,195.92,0.2]
[1761810043343,112.30676478,195.93,195.92,0.2]
[1761810043549,114.31134727,195.93,195.92,0.89]
[1761810044030,114.31134727,195.93,195.92,0.2]
[1761810046034,112.30676478,195.93,195.92,0.2]
[1761810046235,114.31134727,195.93,195.92,0.2]
[1761810047340,115.4392657,195.93,195.92,0.2]
[1761810051059,111.63636454,195.93,195.92,0.2]
[1761810051244,115.43796875,195.93,195.92,0.2]
[1761810052369,115.43772654,195.93,195.92,0.2]
[1761810056279,116.15772654,195.93,195.92,0.2]
[1761810057249,116.16027165,195.93,195.92,0.2]
[1761810059251,116.16122225,195.93,195.92,0.2]
[1761810059869,116.16122225,195.93,195.92,1e-08]
[1761810060347,12.76122225,195.93,195.92,1e-08]
[1761810060546,18.47406747,195.93,195.92,1e-08]
[1761810060763,12.76122225,195.93,195.92,1e-08]
[1761810061162,17.75406747,195.93,195.92,1e-08]
[1761810061364,17.04597617,195.93,195.92,1e-08]
[1761810061566,12.04122225,195.93,195.92,1e-08]
[1761810061973,12.04122225,195.93,195.92,0.71000001]
[1761810062561,12.04122225,195.93,195.92,1e-08]
[1761810062988,16.32597617,195.93,195.92,1e-08]
[1761810064179,12.04122225,195.93,195.92,1e-08]
[1761810065293,17.75406747,195.93,195.92,1e-08]
[1761810065474,17.75406747,195.93,195.92,0.71000001]
[1761810065475,32.63322225,195.93,195.92,0.71000001]
[1761810065797,36.93347765,195.93,195.92,0.71000001]
[1761810066195,32.63322225,195.93,195.92,0.71000001]
[1761810067387,29.50072133,195.93,195.92,0.71000001]
[1761810067893,24.39685771,195.93,195.92,0.71000001]
[1761810068193,3.80485771,195.93,195.92,0.71000001]
[1761810070172,3.80485771,195.93,195.92,3.84250093]
[1761810071676,3.80485771,195.93,195.92,0.71000001]
[1761810074305,3.80485771,195.93,195.92,3.84250093]
[1761810074993,3.80485771,195.93,195.92,0.71000001]
[1761810075198,3.80485771,195.93,195.92,3.84250093]
[1761810076802,3.80485771,195.93,195.92,0.71000001]
[1761810080493,3.80485771,195.96,195.92,0.71000001]
[1761810080699,3.80485771,195.95,195.92,3.84250093]
[1761810080907,3.80485771,195.94,195.93,0.67]
[1761810081412,20.592,195.93,195.92,1e-08]
[1761810081709,6.93735863,195.93,195.92,1e-08]
[1761810081886,7.65735863,195.93,195.92,1e-08]
[1761810082900,16.34299084,195.93,195.92,1e-08]
[1761810083091,16.35709325,195.93,195.92,1e-08]
[1761810086616,119.75709325,195.93,195.92,1e-08]
[1761810087406,116.62459233,195.93,195.92,1e-08]
[1761810087600,119.75709325,195.93,195.92,1e-08]
[1761810087994,120.47709325,195.93,195.92,1e-08]
[1761810089903,116.17532466,195.93,195.92,1e-08]
[1761810091604,112.32282374,195.93,195.92,1e-08]
[1761810091807,115.45532466,195.93,195.92,1e-08]
[1761810092818,119.7527172,195.93,195.92,1e-08]
[1761810097335,115.45532466,195.93,195.92,1e-08]
[1761810101119,116.17532466,195.93,195.92,1e-08]
[1761810102225,115.45532466,195.93,195.92,1e-08]
[1761810103148,112.32282374,195.93,195.92,1e-08]
[1761810103429,115.45532466,195.93,195.92,1e-08]
[1761810104218,12.05532466,195.93,195.92,1e-08]
[1761810106025,8.92282374,195.93,195.92,1e-08]
[1761810106217,12.05532466,195.93,195.92,1e-08]
[1761810107348,18.48816988,195.93,195.91,0.2]
[1761810107648,10.25180534,195.92,195.91,0.2]
[1761810107946,17.36131689,195.92,195.91,0.2]
[1761810108148,10.92847167,195.92,195.91,0.2]
[1761810109725,11.64847167,195.92,195.91,0.2]
[1761810111524,10.92847167,195.92,195.91,0.2]
[1761810111727,31.52047167,195.92,195.91,0.2]
[1761810112125,32.24047167,195.92,195.91,0.2]
[1761810113167,135.64047167,195.92,195.91,0.2]
[1761810113358,120.76131689,195.92,195.91,0.2]
[1761810114060,115.04847167,195.92,195.91,0.2]
[1761810117446,115.04847167,195.92,195.91,0.03335712]
[1761810117746,20.592,195.9,195.89,0.2]
[1761810117932,32.14895694,195.9,195.89,0.2]
[1761810118132,32.85895694,195.9,195.89,0.2]
[1761810118331,32.14895694,195.9,195.89,0.2]
[1761810119946,37.25360216,195.9,195.89,0.2]
[1761810120147,37.25360216,195.9,195.89,0.89]
[1761810121360,35.24821474,195.9,195.89,0.2]
[1761810121761,1.74896012,195.9,195.89,17.78912092]
[1761810121940,4.29857024,195.97,195.92,9.78882769]
[1761810122145,4.29857024,195.97,195.93,2.00538742]
[1761810122741,9.40139007,195.98,195.94,2.00538742]
[1761810123153,9.40139007,195.98,195.94,7.73799682]
[1761810124051,9.40139007,195.98,195.94,5.7326094]
[1761810124251,9.40139007,195.98,195.94,7.73799682]
[1761810125172,9.4008745,195.99,195.95,2.00538742]
[1761810125688,9.4008745,195.99,195.94,7.73799682]
[1761810126664,5.10230426,195.99,195.94,7.73799682]
[1761810127251,5.10230426,195.99,195.94,2.00538742]
[1761810127769,29.99261629,196.0,195.94,7.10889499]
[1761810127957,20.592,196.0,195.95,9.78882769]
[1761810128154,4.29857024,196.02,195.98,2.00538742]
[1761810128356,20.592,196.01,195.98,2.00538742]
[1761810130369,26.40381296,196.01,195.97,9.78882769]
[1761810130542,25.69381296,196.01,195.97,9.78882769]
[1761810133454,25.69381296,196.01,195.96,11.79421511]
[1761810133856,3.80723626,196.0,195.96,11.79421511]
[1761810134777,2.00538742,195.98,195.93,2.00538742]
[1761810135075,0.7,195.99,195.91,15.34173719]
[1761810135076,2.00538742,195.96,195.91,15.34173719]
[1761810135282,3.80630762,195.95,195.9,2.00538742]
[1761810135465,3.80630762,195.95,195.91,2.00538742]
[1761810135664,2.00538742,195.97,195.91,2.00538742]
[1761810135860,3.80678889,195.96,195.91,2.00538742]
[1761810136182,3.80678889,195.96,195.93,9.78882769]
[1761810136384,2.00538742,195.99,195.93,2.00538742]
[1761810136557,3.80591793,195.98,195.94,2.00538742]
[1761810136756,27.69949707,196.0,195.94,2.00538742]
[1761810136953,3.80591679,195.99,195.94,2.00538742]
[1761810137160,3.80591679,195.99,195.95,11.79421511]
[1761810137679,3.80591679,195.99,195.97,9.78882769]
[1761810138872,3.80591679,195.99,195.95,7.10865641]
[1761810139079,7.10718266,196.01,195.95,7.10865641]
[1761810139280,3.80388066,196.0,195.95,7.10865641]
[1761810139460,3.80388066,196.0,195.95,2.00538742]
[1761810139777,3.80388066,196.0,195.94,14.89240362]
[1761810139778,5.80926808,196.0,195.94,11.79421511]
[1761810140075,3.80388066,195.99,195.94,11.79421511]
[1761810140483,2.00538742,195.98,195.93,7.10718266]
[1761810140775,2.00538742,195.96,195.93,7.10718266]
[1761810141155,2.00538742,195.96,195.9,11.79421511]
[1761810141379,2.70538742,195.96,195.9,11.79421511]
[1761810143880,5.10334268,195.95,195.89,0.2]
[1761810144059,5.10334268,195.95,195.9,2.00538742]
[1761810144583,0.69,195.94,195.89,9.98882769]
[1761810144884,2.00538742,195.92,195.89,0.2]
[1761810145068,5.80905652,195.91,195.89,0.2]
[1761810145268,2.00538742,195.91,195.89,0.2]
[1761810145487,2.69538742,195.91,195.89,0.2]
[1761810146481,2.00538742,195.91,195.89,0.2]
[1761810146859,5.10435226,195.92,195.89,0.2]
[1761810147061,3.80460716,195.91,195.89,0.2]
[1761810148963,8.90905668,195.91,195.89,0.2]
[1761810149267,5.10444952,195.91,195.89,0.2]
[1761810149965,5.80444952,195.91,195.89,0.2]
[1761810150352,8.9097292,195.9,195.89,0.2]
[1761810150884,9.6097292,195.9,195.89,0.2]
[1761810151086,8.9097292,195.9,195.89,0.2]
[1761810151268,8.90972491,195.9,195.89,0.2]
[1761810151463,9.60972491,195.9,195.89,0.2]
[1761810152882,11.61511233,195.9,195.89,0.2]
[1761810154206,15.91368257,195.9,195.89,0.2]
[1761810154367,11.61511233,195.9,195.89,0.2]
[1761810155277,15.91368257,195.9,195.89,0.2]
[1761810155594,11.61511233,195.9,195.89,0.2]
[1761810155789,10.91511233,195.9,195.89,0.2]
[1761810156093,11.61511233,195.9,195.89,0.2]
[1761810156299,9.60972491,195.9,195.89,0.2]
[1761810156593,11.61511233,195.9,195.89,0.2]
[1761810158894,11.75907325,195.9,195.89,0.2]
[1761810159675,11.75907325,195.9,195.89,17.09912092]
[1761810159676,3.94904061,195.9,195.89,17.09912092]
[1761810159988,3.94904061,195.9,195.89,9.98882769]
[1761810159989,0.14396092,195.9,195.89,9.98882769]
[1761810160192,0.14396092,195.9,195.89,0.2]
[1761810161978,0.14396092,195.9,195.89,15.0937335]
[1761810162186,0.14396092,195.9,195.89,17.09912092]
[1761810163225,0.14396092,195.9,195.89,11.99421511]
[1761810166301,0.14396092,195.9,195.89,17.09912092]
[1761810167301,0.14396092,195.9,195.89,24.20681185]
[1761810169288,0.14396092,195.9,195.89,25.33162909]
[1761810169602,0.14396092,195.9,195.89,28.46183375]
[1761810171409,0.7,195.99,195.9,9.78882769]
[1761810171582,4.99857024,196.06,195.98,12.91903235]
[1761810171782,3.80693623,196.05,196.02,9.78882769]
[1761810171996,3.80589095,196.04,196.01,3.13020466]
[1761810172199,3.80593423,196.03,196.02,9.78882769]
[1761810172504,25.6922193,196.07,196.01,12.91903235]
[1761810172703,4.52488679,196.06,196.01,12.91903235]
[1761810173093,0.72,196.05,195.99,5.10230113]
[1761810173285,0.72,196.05,196.01,3.13020466]
[1761810173806,4.52488679,196.05,196.01,3.13020466]
[1761810174012,9.62574655,196.05,196.01,3.13020466]
[1761810174185,4.52488679,196.04,196.01,3.13020466]
[1761810174700,0.72,196.03,195.95,19.57765538]
[1761810175007,0.72,196.03,196.0,9.78882769]
[1761810175588,4.52488679,196.03,196.0,9.78882769]
[1761810176005,0.72,196.02,196.0,9.78882769]
[1761810176492,0.72,196.02,196.0,3.13020466]
[1761810176801,0.72,196.02,196.0,9.78882769]
[1761810177712,0.72,196.02,195.96,8.23303793]
[1761810177910,9.6220959,196.02,195.98,9.78882769]
[1761810178221,5.82153145,196.02,195.98,9.78882769]
[1761810178412,0.72,196.01,195.98,9.78882769]
[1761810179116,5.82182635,196.01,195.97,9.78882769]
[1761810179714,0.72,196.0,195.97,9.78882769]
[1761810180011,0.72,196.0,195.97,12.91903235]
[1761810180502,0.72,196.02,195.97,12.91903235]
[1761810180993,4.51971855,196.02,195.98,3.13020466]
[1761810181311,0.72,196.01,195.98,3.13020466]
[1761810181509,0.72,196.03,196.0,9.78882769]
[1761810182222,0.72,196.03,196.0,3.13020466]
[1761810182521,0.72,196.05,196.02,3.13020466]
[1761810182702,0.72,196.07,196.03,3.13020466]
[1761810183023,0.72,196.07,196.04,3.13020466]
[1761810183312,0.72,196.07,196.05,3.13020466]
[1761810183722,0.72,196.07,196.05,9.78882769]
[1761810185219,3.13020466,196.06,195.99,18.02133279]
[1761810185617,0.72,196.05,195.99,18.02133279]
[1761810185818,0.72,196.05,196.01,9.78882769]